[Event "Rapid della Domenica"]
[Site "Chess.com"]
[Date "2020.04.26"]
[Round "4"]
[White "Carbon"]
[Black "pedrak"]
[Result "1-0"]
[WhiteElo "1824"]
[BlackElo "1707"]
[TimeControl "720+3"]
[EndTime "7:37:09 PDT"]
[Termination "Carbon ha vinto per scaccomatto"]

1. e4 {[%clk 0:12:02.5]} 1... d5 {[%clk 0:12:00.6]} 2. exd5 {[%clk 0:12:04]}
2... Qxd5 {[%clk 0:12:01.9]} 3. Nc3 {[%clk 0:12:05.5]} 3... Qd6 {[%clk
0:12:03.2]} 4. g3 {[%clk 0:12:06.6]} 4... Nf6 {[%clk 0:12:04.4]} 5. Bg2 {[%clk
0:11:51.1]} 5... c6 {[%clk 0:12:05.6]} 6. d4 {[%clk 0:11:45.5]} 6... Bf5 {[%clk
0:11:56.7]} 7. Nf3 {[%clk 0:11:22.8]} 7... e6 {[%clk 0:11:57.7]} 8. O-O {[%clk
0:11:23.3]} 8... Be7 {[%clk 0:11:53.4]} 9. Ne5 {[%clk 0:11:09.2]} 9... O-O
{[%clk 0:11:49]} 10. a3 {[%clk 0:10:49.9]} 10... Nd5 {[%clk 0:11:40.1]} 11. Ne4
{[%clk 0:10:40.4]} 11... Bxe4 {[%clk 0:11:39.8]} 12. Bxe4 {[%clk 0:10:41]} 12...
Nd7 {[%clk 0:11:38.4]} 13. Nc4 {[%clk 0:10:23.7]} 13... Qc7 {[%clk 0:11:33.2]}
14. Ne3 {[%clk 0:10:24.5]} 14... N7f6 {[%clk 0:11:32]} 15. Bg2 {[%clk
0:10:20.3]} 15... Rad8 {[%clk 0:11:25.2]} 16. c4 {[%clk 0:10:07.7]} 16... Nb6
{[%clk 0:11:18.3]} 17. b3 {[%clk 0:09:48.4]} 17... Rd7 {[%clk 0:10:55.1]} 18.
Bb2 {[%clk 0:09:46.5]} 18... Rfd8 {[%clk 0:10:55.5]} 19. Qc1 {[%clk 0:09:29.6]}
19... h6 {[%clk 0:10:53]} 20. a4 {[%clk 0:09:17.4]} 20... a5 {[%clk 0:10:40.5]}
21. Bc3 {[%clk 0:09:08.6]} 21... Nc8 {[%clk 0:10:37.3]} 22. Qb2 {[%clk
0:09:03.8]} 22... Bb4 {[%clk 0:10:24.6]} 23. Rad1 {[%clk 0:08:56.7]} 23... Bxc3
{[%clk 0:10:24.8]} 24. Qxc3 {[%clk 0:08:57.7]} 24... b6 {[%clk 0:10:25.9]} 25.
Rd3 {[%clk 0:08:02.3]} 25... Nd6 {[%clk 0:09:11.4]} 26. Rfd1 {[%clk 0:07:37.9]}
26... Nde4 {[%clk 0:09:12.2]} 27. Qb2 {[%clk 0:07:25.8]} 27... Nc5 {[%clk
0:08:16.8]} 28. R3d2 {[%clk 0:07:17.7]} 28... Nce4 {[%clk 0:08:14.7]} 29. Rd3
{[%clk 0:07:12.7]} 29... e5 {[%clk 0:07:58]} 30. d5 {[%clk 0:07:04.6]} 30...
cxd5 {[%clk 0:07:56]} 31. Nxd5 {[%clk 0:07:00.1]} 31... Nxd5 {[%clk 0:07:54.3]}
32. Bxe4 {[%clk 0:06:44.2]} 32... Nb4 {[%clk 0:07:53.4]} 33. Rxd7 {[%clk
0:06:36.6]} 33... Rxd7 {[%clk 0:07:54]} 34. Rxd7 {[%clk 0:06:37.2]} 34... Qxd7
{[%clk 0:07:55.6]} 35. Qxe5 {[%clk 0:06:38]} 35... g6 {[%clk 0:07:38.5]} 36.
Qb8+ {[%clk 0:06:20.2]} 36... Kg7 {[%clk 0:07:40.1]} 37. Qxb6 {[%clk 0:06:20.9]}
37... Qd1+ {[%clk 0:07:41.8]} 38. Kg2 {[%clk 0:06:17.8]} 38... Qxb3 {[%clk
0:07:43.5]} 39. Qd4+ {[%clk 0:06:06.9]} 39... Kh7 {[%clk 0:07:44.9]} 40. Bd5
{[%clk 0:05:49.9]} 40... Qxa4 {[%clk 0:07:31.6]} 41. Qf6 {[%clk 0:05:42.9]}
41... Nxd5 {[%clk 0:06:28.1]} 42. Qxf7+ {[%clk 0:05:36.1]} 42... Kh8 {[%clk
0:06:29.8]} 43. Qxd5 {[%clk 0:05:33.1]} 43... Qb4 {[%clk 0:06:17]} 44. c5 {[%clk
0:05:23.9]} 44... Qb8 {[%clk 0:06:07.4]} 45. c6 {[%clk 0:05:18.5]} 45... a4
{[%clk 0:05:40.5]} 46. Qf7 {[%clk 0:04:51]} 46... Qe5 {[%clk 0:05:19.3]} 47. c7
{[%clk 0:04:40.8]} 47... Qe4+ {[%clk 0:05:20]} 48. Qf3 {[%clk 0:04:33.5]} 48...
Qc4 {[%clk 0:05:18.7]} 49. Qf6+ {[%clk 0:04:25]} 49... Kh7 {[%clk 0:05:18.2]}
50. Qe7+ {[%clk 0:04:24.4]} 50... Kh8 {[%clk 0:05:16.9]} 51. Qd8+ {[%clk
0:04:25.2]} 51... Kh7 {[%clk 0:05:18.4]} 52. c8=Q {[%clk 0:04:26.7]} 52... Qe4+
{[%clk 0:05:19.4]} 53. f3 {[%clk 0:04:23.1]} 53... Qe2+ {[%clk 0:05:20.7]} 54.
Kh3 {[%clk 0:04:22.6]} 54... Qf1+ {[%clk 0:05:22]} 55. Kg4 {[%clk 0:04:08.5]}
55... h5+ {[%clk 0:05:23.3]} 56. Kf4 {[%clk 0:03:59.6]} 56... g5+ {[%clk
0:05:04.4]} 57. Kxg5 {[%clk 0:03:57.4]} 57... Qc4 {[%clk 0:04:45.1]} 58. Qh8#
{[%clk 0:03:54]} 1-0

[Event "Rapid della Domenica"]
[Site "Chess.com"]
[Date "2020.04.26"]
[Round "4"]
[White "fausto2p"]
[Black "giulioscaglione"]
[Result "0-1"]
[WhiteElo "1015"]
[BlackElo "1287"]
[TimeControl "720+3"]
[EndTime "7:37:30 PDT"]
[Termination "giulioscaglione ha vinto per tempo"]

1. d4 {[%clk 0:12:02.9]} 1... e6 {[%clk 0:12:00.6]} 2. c4 {[%clk 0:11:52.3]}
2... Bb4+ {[%clk 0:11:56.8]} 3. Nc3 {[%clk 0:11:34.6]} 3... b6 {[%clk
0:11:53.5]} 4. a3 {[%clk 0:11:33.4]} 4... Bxc3+ {[%clk 0:11:54.6]} 5. bxc3
{[%clk 0:11:34]} 5... Bb7 {[%clk 0:11:56.9]} 6. Nf3 {[%clk 0:11:31]} 6... Ne7
{[%clk 0:11:54.8]} 7. e3 {[%clk 0:11:28]} 7... O-O {[%clk 0:11:56.1]} 8. Be2
{[%clk 0:11:19.3]} 8... Ng6 {[%clk 0:11:57.3]} 9. O-O {[%clk 0:11:04.8]} 9... d6
{[%clk 0:11:58.7]} 10. a4 {[%clk 0:10:42.9]} 10... Nd7 {[%clk 0:11:47]} 11. Qc2
{[%clk 0:09:59.2]} 11... Nf6 {[%clk 0:11:21.8]} 12. Nd2 {[%clk 0:09:23.4]} 12...
e5 {[%clk 0:10:54]} 13. Bf3 {[%clk 0:09:01.1]} 13... Bxf3 {[%clk 0:10:50]} 14.
Nxf3 {[%clk 0:09:01.2]} 14... Nd7 {[%clk 0:09:28.4]} 15. dxe5 {[%clk 0:08:08]}
15... Ndxe5 {[%clk 0:09:25.3]} 16. Nxe5 {[%clk 0:07:42.7]} 16... Nxe5 {[%clk
0:09:26.3]} 17. Qe4 {[%clk 0:07:16.8]} 17... Qf6 {[%clk 0:09:06.5]} 18. f4
{[%clk 0:06:42.7]} 18... Ng6 {[%clk 0:08:31.4]} 19. Qd4 {[%clk 0:04:44.7]} 19...
Qxd4 {[%clk 0:08:07.2]} 20. cxd4 {[%clk 0:04:44.9]} 20... a5 {[%clk 0:08:05.4]}
21. e4 {[%clk 0:04:16.5]} 21... Ne7 {[%clk 0:07:47.4]} 22. Bb2 {[%clk
0:03:45.8]} 22... Rfd8 {[%clk 0:07:10.1]} 23. Rf3 {[%clk 0:03:10.9]} 23... Nc6
{[%clk 0:06:57.6]} 24. Bc3 {[%clk 0:02:59.7]} 24... Re8 {[%clk 0:06:37.1]} 25.
e5 {[%clk 0:02:40.1]} 25... Rad8 {[%clk 0:06:19]} 26. exd6 {[%clk 0:01:48.4]}
26... Rxd6 {[%clk 0:06:19.2]} 27. d5 {[%clk 0:01:35.3]} 27... Nb8 {[%clk
0:05:41.1]} 28. Be5 {[%clk 0:01:31.9]} 28... Rd7 {[%clk 0:05:39.5]} 29. Rg3
{[%clk 0:01:14]} 29... g6 {[%clk 0:05:33.7]} 30. Rc1 {[%clk 0:00:05.2]} 30...
Na6 {[%clk 0:05:33.9]} 0-1

[Event "Rapid della Domenica"]
[Site "Chess.com"]
[Date "2020.04.26"]
[Round "4"]
[White "Lavolpeneldeserto"]
[Black "Luca090267"]
[Result "0-1"]
[WhiteElo "702"]
[BlackElo "1332"]
[TimeControl "720+3"]
[EndTime "7:37:37 PDT"]
[Termination "Luca090267 ha vinto per tempo"]

1. d4 {[%clk 0:12:02.9]} 1... Nf6 {[%clk 0:12:00.5]} 2. Bf4 {[%clk 0:12:00.2]}
2... g6 {[%clk 0:12:02]} 3. Nc3 {[%clk 0:11:59.4]} 3... Bg7 {[%clk 0:12:03.9]}
4. Nf3 {[%clk 0:11:52]} 4... O-O {[%clk 0:12:05.4]} 5. e3 {[%clk 0:11:47]} 5...
d6 {[%clk 0:12:07]} 6. Be2 {[%clk 0:11:34.1]} 6... c5 {[%clk 0:12:07.3]} 7. O-O
{[%clk 0:11:09.1]} 7... cxd4 {[%clk 0:12:08.1]} 8. exd4 {[%clk 0:11:08.6]} 8...
Nc6 {[%clk 0:12:02.3]} 9. Qd2 {[%clk 0:10:36.9]} 9... Nd7 {[%clk 0:11:16.4]} 10.
a3 {[%clk 0:10:06.6]} 10... a6 {[%clk 0:11:09.2]} 11. Bh6 {[%clk 0:09:53.4]}
11... b5 {[%clk 0:11:00.3]} 12. Bxg7 {[%clk 0:09:05.5]} 12... Kxg7 {[%clk
0:11:00.3]} 13. b4 {[%clk 0:08:51.9]} 13... Bb7 {[%clk 0:10:51]} 14. Ne4 {[%clk
0:07:44.5]} 14... Qc7 {[%clk 0:10:26.4]} 15. d5 {[%clk 0:07:10]} 15... Nce5
{[%clk 0:10:12.1]} 16. g3 {[%clk 0:05:53.9]} 16... Rac8 {[%clk 0:09:51]} 17.
Rac1 {[%clk 0:05:46]} 17... Nc4 {[%clk 0:08:59.1]} 18. Qd3 {[%clk 0:05:01.5]}
18... Nde5 {[%clk 0:08:34.1]} 19. Nxe5 {[%clk 0:04:56.7]} 19... Nxe5 {[%clk
0:08:33.7]} 20. Qb3 {[%clk 0:03:59.5]} 20... Nc4 {[%clk 0:08:11.6]} 21. Rfd1
{[%clk 0:03:15.1]} 21... e6 {[%clk 0:06:35.1]} 22. Qc3+ {[%clk 0:01:33.5]} 22...
e5 {[%clk 0:06:29.8]} 23. Qf3 {[%clk 0:00:47.2]} 23... f5 {[%clk 0:06:21.5]} 24.
Ng5 {[%clk 0:00:22.3]} 24... Rfe8 {[%clk 0:05:11.5]} 25. Ne6+ {[%clk 0:00:04.8]}
25... Rxe6 {[%clk 0:05:11.2]} 26. dxe6 {[%clk 0:00:03.8]} 26... Bxf3 {[%clk
0:05:10.3]} 27. Bxf3 {[%clk 0:00:04.5]} 27... e4 {[%clk 0:04:55.1]} 0-1

[Event "Rapid della Domenica"]
[Site "Chess.com"]
[Date "2020.04.26"]
[Round "5"]
[White "pedrak"]
[Black "sergiodone"]
[Result "0-1"]
[WhiteElo "1662"]
[BlackElo "1545"]
[TimeControl "720+3"]
[EndTime "7:44:21 PDT"]
[Termination "sergiodone ha vinto per abbandono"]

1. d4 {[%clk 0:12:02.9]} 1... Nf6 {[%clk 0:11:54.6]} 2. Bg5 {[%clk 0:11:58.7]}
2... c5 {[%clk 0:11:44.7]} 3. Bxf6 {[%clk 0:11:57.7]} 3... exf6 {[%clk 0:11:44]}
4. d5 {[%clk 0:11:59]} 4... d6 {[%clk 0:11:44.9]} 5. c4 {[%clk 0:11:58.1]} 5...
g6 {[%clk 0:11:46.1]} 6. Nc3 {[%clk 0:11:59.4]} 6... Bg7 {[%clk 0:11:47.6]} 7.
g3 {[%clk 0:11:55.3]} 7... f5 {[%clk 0:11:49]} 8. Bg2 {[%clk 0:11:56.8]} 8...
O-O {[%clk 0:11:49.5]} 9. e3 {[%clk 0:11:58.3]} 9... Nd7 {[%clk 0:11:44.9]} 10.
Nge2 {[%clk 0:11:58.7]} 10... Ne5 {[%clk 0:11:46.1]} 11. b3 {[%clk 0:11:57.5]}
11... a6 {[%clk 0:11:47.1]} 12. Rc1 {[%clk 0:11:58.9]} 12... Qa5 {[%clk
0:11:46.1]} 13. Qd2 {[%clk 0:11:58.8]} 13... b5 {[%clk 0:11:35.6]} 14. Nb1
{[%clk 0:11:41.7]} 14... b4 {[%clk 0:11:34.9]} 15. O-O {[%clk 0:11:39.2]} 15...
h5 {[%clk 0:11:25.9]} 16. f4 {[%clk 0:11:26.1]} 16... Ng4 {[%clk 0:11:13.4]} 17.
h3 {[%clk 0:11:27.6]} 17... Nf6 {[%clk 0:11:14.8]} 18. Rc2 {[%clk 0:11:16.9]}
18... Bd7 {[%clk 0:11:15.6]} 19. Qd3 {[%clk 0:11:14.5]} 19... Rfe8 {[%clk
0:11:15.7]} 20. Nd2 {[%clk 0:11:15.8]} 20... Re7 {[%clk 0:11:12.4]} 21. e4
{[%clk 0:10:55.1]} 21... fxe4 {[%clk 0:11:11.6]} 22. Nxe4 {[%clk 0:10:55.2]}
22... Nxe4 {[%clk 0:11:12.1]} 23. Bxe4 {[%clk 0:10:56.6]} 23... Rae8 {[%clk
0:11:06.5]} 24. Bg2 {[%clk 0:10:53.5]} 24... Bf5 {[%clk 0:11:04.7]} 25. Qd1
{[%clk 0:09:41.6]} 25... Bxc2 {[%clk 0:11:02.5]} 26. Qxc2 {[%clk 0:09:41.9]}
26... Rxe2 {[%clk 0:11:02.8]} 27. Qd3 {[%clk 0:09:43]} 27... Qxa2 {[%clk
0:11:02.9]} 28. Qf3 {[%clk 0:09:41.7]} 28... R8e3 {[%clk 0:11:01.1]} 0-1

[Event "Rapid della Domenica"]
[Site "Chess.com"]
[Date "2020.04.26"]
[Round "5"]
[White "giulioscaglione"]
[Black "Lavolpeneldeserto"]
[Result "1-0"]
[WhiteElo "1291"]
[BlackElo "687"]
[TimeControl "720+3"]
[EndTime "7:44:56 PDT"]
[Termination "giulioscaglione ha vinto per scaccomatto"]

1. b3 {[%clk 0:11:23.7]} 1... d5 {[%clk 0:11:53.5]} 2. Bb2 {[%clk 0:11:23.9]}
2... Nf6 {[%clk 0:11:51.9]} 3. e3 {[%clk 0:11:22.4]} 3... Nc6 {[%clk 0:11:43.6]}
4. Bb5 {[%clk 0:11:16.9]} 4... a6 {[%clk 0:11:12]} 5. Bxc6+ {[%clk 0:11:13.2]}
5... bxc6 {[%clk 0:11:11.2]} 6. Ne2 {[%clk 0:11:15.1]} 6... Rb8 {[%clk
0:11:06.8]} 7. O-O {[%clk 0:11:16.1]} 7... Bf5 {[%clk 0:10:55.2]} 8. Ng3 {[%clk
0:11:12.6]} 8... e6 {[%clk 0:10:41.1]} 9. Nxf5 {[%clk 0:10:38.9]} 9... exf5
{[%clk 0:10:39.9]} 10. d3 {[%clk 0:10:33.6]} 10... Bd6 {[%clk 0:10:40]} 11. Qf3
{[%clk 0:10:22.1]} 11... O-O {[%clk 0:10:37.8]} 12. Qxf5 {[%clk 0:10:14.9]}
12... Nd7 {[%clk 0:09:41.3]} 13. Qg4 {[%clk 0:09:58.6]} 13... f6 {[%clk
0:09:27.2]} 14. Nd2 {[%clk 0:09:52.6]} 14... f5 {[%clk 0:08:59.1]} 15. Qxg7#
{[%clk 0:09:41.8]} 1-0

[Event "Rapid della Domenica"]
[Site "Chess.com"]
[Date "2020.04.26"]
[Round "5"]
[White "MarcoCiva"]
[Black "markk000"]
[Result "0-1"]
[WhiteElo "1437"]
[BlackElo "1532"]
[TimeControl "720+3"]
[EndTime "7:47:31 PDT"]
[Termination "markk000 ha vinto per abbandono"]

1. e4 {[%clk 0:12:00]} 1... c5 {[%clk 0:12:00.8]} 2. Nf3 {[%clk 0:11:55.8]} 2...
Nc6 {[%clk 0:12:02.4]} 3. d4 {[%clk 0:11:50.6]} 3... cxd4 {[%clk 0:12:05.3]} 4.
Nxd4 {[%clk 0:11:52]} 4... g6 {[%clk 0:12:07.2]} 5. f4 {[%clk 0:11:51.5]} 5...
Bg7 {[%clk 0:12:04.3]} 6. Nxc6 {[%clk 0:11:45.3]} 6... bxc6 {[%clk 0:12:04.3]}
7. Bd3 {[%clk 0:11:46.2]} 7... Nf6 {[%clk 0:12:03.2]} 8. O-O {[%clk 0:11:46.2]}
8... O-O {[%clk 0:12:03.4]} 9. Nc3 {[%clk 0:11:44.9]} 9... d5 {[%clk 0:12:03.5]}
10. e5 {[%clk 0:11:43.2]} 10... Nd7 {[%clk 0:11:54.2]} 11. Be3 {[%clk 0:11:34]}
11... Bb7 {[%clk 0:11:51.5]} 12. b4 {[%clk 0:11:03.4]} 12... Nb6 {[%clk
0:11:00.6]} 13. Be2 {[%clk 0:10:56.1]} 13... Qd7 {[%clk 0:10:04.3]} 14. b5
{[%clk 0:10:55.5]} 14... Rac8 {[%clk 0:09:40.7]} 15. Qd2 {[%clk 0:10:06.4]}
15... c5 {[%clk 0:09:35.9]} 16. a4 {[%clk 0:09:50.8]} 16... d4 {[%clk
0:09:37.6]} 17. Bxd4 {[%clk 0:09:40.8]} 17... cxd4 {[%clk 0:09:39]} 18. Ne4
{[%clk 0:09:36.6]} 18... Bd5 {[%clk 0:09:40.1]} 19. Ng3 {[%clk 0:09:11.2]} 19...
Bc4 {[%clk 0:09:28.7]} 20. Bxc4 {[%clk 0:09:00.4]} 20... Nxc4 {[%clk 0:09:31.6]}
21. Qd3 {[%clk 0:08:43.1]} 21... Ne3 {[%clk 0:09:31.3]} 22. Rf2 {[%clk
0:08:36.8]} 22... Qd5 {[%clk 0:09:28.2]} 23. Rc1 {[%clk 0:08:20.9]} 23... Bh6
{[%clk 0:09:29.7]} 24. c3 {[%clk 0:08:15.2]} 0-1

[Event "Rapid della Domenica"]
[Site "Chess.com"]
[Date "2020.04.26"]
[Round "5"]
[White "Carbon"]
[Black "toninoiuorio"]
[Result "1-0"]
[WhiteElo "1832"]
[BlackElo "1584"]
[TimeControl "720+3"]
[EndTime "7:51:00 PDT"]
[Termination "Carbon ha vinto per abbandono"]

1. e4 {[%clk 0:12:01.8]} 1... c5 {[%clk 0:12:01.7]} 2. Nf3 {[%clk 0:12:01.9]}
2... e6 {[%clk 0:12:04]} 3. c3 {[%clk 0:11:56.5]} 3... Nc6 {[%clk 0:12:04.7]} 4.
d4 {[%clk 0:11:57.2]} 4... d5 {[%clk 0:12:06.7]} 5. e5 {[%clk 0:11:54.7]} 5...
Bd7 {[%clk 0:12:08.6]} 6. a3 {[%clk 0:11:55.7]} 6... Qb6 {[%clk 0:12:10]} 7. b4
{[%clk 0:11:56.4]} 7... c4 {[%clk 0:12:10.3]} 8. Nbd2 {[%clk 0:11:44.8]} 8... a5
{[%clk 0:12:11.6]} 9. Rb1 {[%clk 0:11:08.4]} 9... axb4 {[%clk 0:12:08.4]} 10.
axb4 {[%clk 0:11:09.9]} 10... Qc7 {[%clk 0:12:05.8]} 11. Be2 {[%clk 0:11:05.6]}
11... b5 {[%clk 0:12:07.4]} 12. O-O {[%clk 0:11:06.1]} 12... Nge7 {[%clk
0:12:09.3]} 13. Bb2 {[%clk 0:10:59.3]} 13... Ng6 {[%clk 0:12:10.7]} 14. Ra1
{[%clk 0:10:56.2]} 14... Na7 {[%clk 0:12:07.5]} 15. Ra6 {[%clk 0:10:42.9]} 15...
Be7 {[%clk 0:12:06.9]} 16. Qa1 {[%clk 0:10:43.3]} 16... O-O {[%clk 0:12:06]} 17.
Qa2 {[%clk 0:10:42.4]} 17... Rfb8 {[%clk 0:11:51.2]} 18. Ra1 {[%clk 0:10:40.9]}
18... Rb7 {[%clk 0:11:50.9]} 19. Nf1 {[%clk 0:10:13.4]} 19... Nf4 {[%clk
0:11:49.1]} 20. Bd1 {[%clk 0:10:09.4]} 20... Nd3 {[%clk 0:11:45.9]} 21. Bc2
{[%clk 0:10:07.9]} 21... Nxb2 {[%clk 0:11:46.9]} 22. Qxb2 {[%clk 0:10:08.5]}
22... h6 {[%clk 0:11:27.5]} 23. Ne3 {[%clk 0:09:56]} 23... Bc8 {[%clk
0:11:16.5]} 24. Qa2 {[%clk 0:09:38.9]} 24... f6 {[%clk 0:11:11]} 25. Bg6 {[%clk
0:09:22.8]} 25... f5 {[%clk 0:11:03.8]} 26. g3 {[%clk 0:08:59.9]} 26... Bd7
{[%clk 0:11:05.4]} 27. Ng2 {[%clk 0:08:56.6]} 27... Kf8 {[%clk 0:11:05.7]} 28.
Nf4 {[%clk 0:08:55.8]} 28... Kg8 {[%clk 0:10:37]} 29. Nxe6 {[%clk 0:08:33.6]}
29... Bxe6 {[%clk 0:10:36.2]} 30. Rxe6 {[%clk 0:08:29.6]} 30... Rf8 {[%clk
0:10:26.2]} 31. Qa6 {[%clk 0:08:07.2]} 31... Nc8 {[%clk 0:10:18.4]} 32. Rc6
{[%clk 0:07:50.2]} 32... Qb8 {[%clk 0:10:15.8]} 33. Qa2 {[%clk 0:07:12.7]} 33...
Ra7 {[%clk 0:10:14.6]} 34. Ra6 {[%clk 0:07:14.4]} 34... Rxa6 {[%clk 0:10:06.5]}
35. Qxa6 {[%clk 0:07:16]} 35... Qb6 {[%clk 0:10:04.1]} 36. Qxb6 {[%clk
0:06:24.6]} 36... Nxb6 {[%clk 0:10:04.8]} 37. Ra7 {[%clk 0:06:11.6]} 37... Bg5
{[%clk 0:10:03.9]} 38. Nxg5 {[%clk 0:06:06.5]} 38... hxg5 {[%clk 0:10:05]} 39.
e6 {[%clk 0:06:07.5]} 39... Nc8 {[%clk 0:09:59.5]} 40. Rc7 {[%clk 0:05:53.4]}
40... f4 {[%clk 0:09:52.3]} 41. e7 {[%clk 0:05:51.5]} 41... Nxe7 {[%clk
0:09:53.9]} 42. Rxe7 {[%clk 0:05:51.6]} 42... fxg3 {[%clk 0:09:54.8]} 43. hxg3
{[%clk 0:05:52.6]} 43... Ra8 {[%clk 0:09:52.1]} 44. Re8+ {[%clk 0:05:52.6]}
44... Rxe8 {[%clk 0:09:51.8]} 45. Bxe8 {[%clk 0:05:54.4]} 45... Kh8 {[%clk
0:09:53.3]} 1-0

[Event "Rapid della Domenica"]
[Site "Chess.com"]
[Date "2020.04.26"]
[Round "5"]
[White "Luca090267"]
[Black "crippo"]
[Result "1/2-1/2"]
[WhiteElo "1357"]
[BlackElo "1493"]
[TimeControl "720+3"]
[EndTime "7:51:39 PDT"]
[Termination "Partita patta per ripetizione di mosse"]

1. e4 {[%clk 0:12:02.9]} 1... e5 {[%clk 0:12:01.6]} 2. Nf3 {[%clk 0:12:03.2]}
2... Nc6 {[%clk 0:12:02.8]} 3. Bb5 {[%clk 0:12:04.5]} 3... d6 {[%clk 0:12:04.7]}
4. c3 {[%clk 0:12:03.3]} 4... Bg4 {[%clk 0:12:05.6]} 5. h3 {[%clk 0:12:02.8]}
5... Bh5 {[%clk 0:12:06.8]} 6. O-O {[%clk 0:11:49.4]} 6... Nf6 {[%clk
0:12:07.9]} 7. d3 {[%clk 0:11:47.9]} 7... Be7 {[%clk 0:12:09.5]} 8. Re1 {[%clk
0:11:48.1]} 8... O-O {[%clk 0:12:10.5]} 9. Nbd2 {[%clk 0:11:48.5]} 9... h6
{[%clk 0:12:12.6]} 10. Nf1 {[%clk 0:11:49.5]} 10... Nh7 {[%clk 0:12:14.7]} 11.
Ng3 {[%clk 0:11:49.9]} 11... Bg6 {[%clk 0:12:16.8]} 12. Be3 {[%clk 0:11:28.5]}
12... Ng5 {[%clk 0:12:18.5]} 13. Nxg5 {[%clk 0:11:25]} 13... Bxg5 {[%clk
0:12:19.7]} 14. Qd2 {[%clk 0:11:21.3]} 14... Bxe3 {[%clk 0:12:21.2]} 15. Qxe3
{[%clk 0:11:21.2]} 15... f5 {[%clk 0:12:21.5]} 16. exf5 {[%clk 0:11:19.1]} 16...
Bxf5 {[%clk 0:12:22.6]} 17. Nxf5 {[%clk 0:11:17.5]} 17... Rxf5 {[%clk
0:12:23.7]} 18. f3 {[%clk 0:11:06.2]} 18... Qh4 {[%clk 0:12:24]} 19. Qf2 {[%clk
0:10:34.2]} 19... Qg5 {[%clk 0:12:24.3]} 20. Bxc6 {[%clk 0:10:21.8]} 20... bxc6
{[%clk 0:12:25.6]} 21. Kh1 {[%clk 0:10:07.1]} 21... Raf8 {[%clk 0:12:25.3]} 22.
Re2 {[%clk 0:09:47]} 22... c5 {[%clk 0:12:25.7]} 23. Rae1 {[%clk 0:09:44.8]}
23... Rf4 {[%clk 0:12:26.1]} 24. Re4 {[%clk 0:09:19.2]} 24... Qg6 {[%clk
0:12:26.3]} 25. Rxf4 {[%clk 0:09:18.4]} 25... Rxf4 {[%clk 0:12:26.7]} 26. Re4
{[%clk 0:09:16.7]} 26... Qf7 {[%clk 0:12:14.4]} 27. b3 {[%clk 0:09:08.7]} 27...
c6 {[%clk 0:12:06.5]} 28. Qe3 {[%clk 0:08:32]} 28... a5 {[%clk 0:11:57.1]} 29.
Rxf4 {[%clk 0:08:31.3]} 29... Qxf4 {[%clk 0:11:57.5]} 30. Qxf4 {[%clk
0:08:32.9]} 30... exf4 {[%clk 0:11:59.4]} 31. Kg1 {[%clk 0:08:31.2]} 31... Kf7
{[%clk 0:11:59.7]} 32. Kf2 {[%clk 0:08:31.7]} 32... Ke6 {[%clk 0:12:01.7]} 33.
Ke2 {[%clk 0:07:44]} 33... g5 {[%clk 0:12:01.1]} 34. Kd2 {[%clk 0:07:35.5]}
34... h5 {[%clk 0:12:01]} 35. Kc2 {[%clk 0:06:46.7]} 35... Ke5 {[%clk
0:11:59.2]} 36. a3 {[%clk 0:06:44.6]} 36... Kd5 {[%clk 0:11:37.9]} 37. Kb2
{[%clk 0:06:13.6]} 37... Ke5 {[%clk 0:11:31.3]} 38. Kc2 {[%clk 0:05:50.5]} 38...
d5 {[%clk 0:11:32.3]} 39. Kd2 {[%clk 0:05:22.2]} 39... d4 {[%clk 0:11:32.6]} 40.
c4 {[%clk 0:05:20.2]} 40... Kf5 {[%clk 0:11:31.4]} 41. Ke2 {[%clk 0:05:18.1]}
41... g4 {[%clk 0:11:31.5]} 42. fxg4+ {[%clk 0:04:38.2]} 42... hxg4 {[%clk
0:11:33]} 43. hxg4+ {[%clk 0:04:34.8]} 43... Kxg4 {[%clk 0:11:34.5]} 44. Kf2
{[%clk 0:04:21.1]} 44... Kf5 {[%clk 0:11:32]} 45. Kf3 {[%clk 0:04:04.2]} 45...
Kg5 {[%clk 0:11:32.7]} 46. Ke2 {[%clk 0:04:01.4]} 46... Kg4 {[%clk 0:11:34.7]}
47. Kf2 {[%clk 0:04:02.9]} 47... Kh4 {[%clk 0:11:36.7]} 48. Kf3 {[%clk
0:03:57.4]} 48... Kg5 {[%clk 0:11:38.8]} 49. Ke2 {[%clk 0:03:54.6]} 49... Kg4
{[%clk 0:11:39.9]} 1/2-1/2

[Event "Rapid della Domenica"]
[Site "Chess.com"]
[Date "2020.04.26"]
[Round "5"]
[White "sirmale49"]
[Black "caramante"]
[Result "0-1"]
[WhiteElo "1408"]
[BlackElo "1560"]
[TimeControl "720+3"]
[EndTime "7:53:18 PDT"]
[Termination "caramante ha vinto per abbandono"]

1. e4 {[%clk 0:11:07.4]} 1... c5 {[%clk 0:11:57.6]} 2. f4 {[%clk 0:11:08.3]}
2... d6 {[%clk 0:11:56.6]} 3. Nf3 {[%clk 0:11:09.7]} 3... Nf6 {[%clk 0:11:57.7]}
4. Nc3 {[%clk 0:11:09]} 4... e6 {[%clk 0:11:59.7]} 5. d4 {[%clk 0:11:08.3]} 5...
cxd4 {[%clk 0:12:00.6]} 6. Qxd4 {[%clk 0:11:03.6]} 6... a6 {[%clk 0:11:58.2]} 7.
Bc4 {[%clk 0:10:38.5]} 7... Nc6 {[%clk 0:11:54.3]} 8. Qd2 {[%clk 0:10:11.7]}
8... Be7 {[%clk 0:11:50.7]} 9. O-O {[%clk 0:10:11.6]} 9... O-O {[%clk
0:11:51.4]} 10. Rd1 {[%clk 0:10:03.2]} 10... Qc7 {[%clk 0:11:47.9]} 11. a3
{[%clk 0:09:35.3]} 11... Qb6+ {[%clk 0:11:25.7]} 12. Qe3 {[%clk 0:09:17.7]}
12... Qc7 {[%clk 0:11:24.7]} 13. h3 {[%clk 0:09:10.2]} 13... Na5 {[%clk
0:11:20.6]} 14. Bd3 {[%clk 0:08:24.6]} 14... d5 {[%clk 0:11:03.5]} 15. e5 {[%clk
0:08:13.2]} 15... Bc5 {[%clk 0:11:02.8]} 16. Nd4 {[%clk 0:08:11.5]} 16... Nc6
{[%clk 0:10:40.1]} 17. Nce2 {[%clk 0:07:47.9]} 17... Ne4 {[%clk 0:10:30.9]} 18.
Bxe4 {[%clk 0:07:38.3]} 18... dxe4 {[%clk 0:10:31.4]} 19. Qxe4 {[%clk
0:07:39.4]} 19... Nxd4 {[%clk 0:10:31.1]} 20. Nxd4 {[%clk 0:07:34.3]} 20... Qb6
{[%clk 0:10:31.3]} 21. Kh2 {[%clk 0:07:30.5]} 21... Rd8 {[%clk 0:10:28.5]} 22.
c3 {[%clk 0:07:19.1]} 22... Bd7 {[%clk 0:10:13.8]} 23. b4 {[%clk 0:06:58.2]}
23... Bxd4 {[%clk 0:10:10.4]} 24. Rxd4 {[%clk 0:06:53.5]} 24... Bc6 {[%clk
0:10:10.7]} 25. Qd3 {[%clk 0:06:33.1]} 25... g6 {[%clk 0:10:01.2]} 26. Be3
{[%clk 0:06:33.6]} 26... Qc7 {[%clk 0:09:55.2]} 27. c4 {[%clk 0:06:05.1]} 27...
Rxd4 {[%clk 0:09:52]} 28. Qxd4 {[%clk 0:05:48.2]} 28... Rd8 {[%clk 0:09:51.7]}
29. Qc5 {[%clk 0:05:42.4]} 29... Qc8 {[%clk 0:09:48.8]} 30. Rb1 {[%clk
0:05:12.2]} 30... Rd3 {[%clk 0:09:35.2]} 31. b5 {[%clk 0:04:31.9]} 31... axb5
{[%clk 0:09:33.3]} 32. cxb5 {[%clk 0:04:31.1]} 32... Bd7 {[%clk 0:09:33.4]} 33.
Qc7 {[%clk 0:03:12.5]} 0-1